bitfinex/quotes_ETHUSD_20250323
["timestamp","ask_amount","ask_price","bid_price","bid_amount"]
[1742711534160,1.51783727,2004.3,2004.2,4.98943]
[1742711536559,1.78378181,2004.4,2004.2,9.9788]
[1742711536560,2.52401908,2004.4,2004.2,9.9788]
[1742711536764,1.51783727,2004.5,2004.4,4.989]
[1742711537902,1.51783727,2004.5,2004.3,4.98927]
[1742711538062,1.51783727,2004.4,2004.3,4.98927]
[1742711538990,1.51783727,2004.5,2004.3,4.98927]
[1742711541396,1.51783727,2004.4,2004.3,4.98927]
[1742711552491,3.8217,2004.6,2004.3,4.98927]
[1742711552686,1.51783727,2004.5,2004.3,4.98927]
[1742711552919,1.51783727,2004.4,2004.3,4.98927]
[1742711554324,1.51783727,2004.4,2004.2,31.36947]
[1742711555530,1.51783727,2004.4,2004.3,4.98927]
[1742711561654,1.51783727,2004.4,2004.2,31.36946]
[1742711567958,1.51783727,2004.5,2004.2,31.36946]
[1742711568348,1.51783727,2004.4,2004.2,31.36946]
[1742711568781,1.51783727,2004.5,2004.3,4.98921]
[1742711571758,1.51783727,2004.5,2004.2,31.36946]
[1742711575889,10.32806727,2004.6,2004.2,31.36946]
[1742711583610,1.51783727,2004.5,2004.2,31.36946]
[1742711584210,10.32806727,2004.6,2004.2,31.36946]
[1742711584514,1.51783727,2004.5,2004.2,31.36946]
[1742711587528,1.51783727,2004.3,2004.2,26.38]
[1742711587731,7.29220727,2004.3,2004.2,26.38]
[1742711588820,2.30293727,2004.3,2004.2,26.38]
[1742711591203,7.29220727,2004.3,2004.2,26.38]
[1742711591419,8.68351621,2004.3,2004.2,26.38]
[1742711592304,7.29220727,2004.3,2004.2,26.38]
[1742711593645,2.30293727,2004.3,2004.2,26.38]
[1742711595557,10.29220727,2004.3,2004.2,26.38]
[1742711595857,4.98969,2004.2,2003.8,31.37049]
[1742711596061,1.51783727,2003.9,2003.8,26.38]
[1742711596515,2.28393727,2003.9,2003.8,26.38]
[1742711597132,7.27419727,2003.9,2003.8,26.38]
[1742711610319,12.26465727,2003.9,2003.5,4.99121]
[1742711610473,1.51783727,2003.6,2003.5,4.99121]
[1742711611304,1.51783727,2003.7,2003.5,4.99121]
[1742711615619,1.51783727,2003.7,2003.4,36.36871]
[1742711615818,1.51783727,2003.6,2003.4,31.37734]
[1742711616183,1.51783727,2003.7,2003.4,31.37734]
[1742711616516,1.51783727,2003.6,2003.4,31.37734]
[1742711618422,1.51783727,2003.7,2003.4,31.37734]
[1742711619014,1.51783727,2003.7,2003.4,36.36868]
[1742711619234,1.51783727,2003.7,2003.4,31.37734]
[1742711621837,1.51783727,2003.6,2003.4,31.37734]
[1742711623009,1.51783727,2003.7,2003.4,31.37734]
[1742711624338,1.51783727,2003.6,2003.4,31.37734]
[1742711624538,0.97524897,2004.0,2003.9,4.99026]
[1742711624838,1.51783727,2004.4,2004.1,4.98975]
[1742711625504,1.51783727,2004.4,2004.1,9.97941]
[1742711625906,1.51783727,2004.4,2004.1,4.98966]
[1742711626105,3.06534424,2004.4,2004.1,4.98966]
[1742711626514,1.51783727,2004.3,2004.2,4.98952]
[1742711626709,1.51783727,2004.3,2004.1,4.98965]
[1742711627217,1.51783727,2004.3,2004.1,9.97927]
[1742711627635,1.51783727,2004.3,2004.1,4.98962]
[1742711627841,1.51783727,2004.3,2004.1,9.97923]
[1742711628643,1.51783727,2004.2,2003.9,6.17897925]
[1742711628941,1.51783727,2004.0,2003.9,0.37265925]
[1742711629846,1.51783727,2004.0,2003.8,4.99036]
[1742711630844,1.51783727,2004.0,2003.7,5.74975]
[1742711631048,1.51783727,2004.0,2003.7,5.7497]
[1742711632448,1.51783727,2004.0,2003.8,4.9905]
[1742711634855,1.51783727,2004.0,2003.7,5.74982]
[1742711637450,1.51783727,2003.9,2003.7,5.74982]
[1742711637841,1.51783727,2004.0,2003.7,5.74982]
[1742711638654,1.51783727,2004.0,2003.8,26.384]
[1742711639560,1.51783727,2003.9,2003.8,26.384]
[1742711639727,6.50809727,2003.9,2003.8,26.384]
[1742711640961,7.740519,2003.9,2003.8,26.384]
[1742711641177,8.500019,2003.9,2003.8,26.384]
[1742711648174,4.99054,2003.8,2003.5,4.99121]
[1742711648479,6.50837727,2003.8,2003.5,4.99121]
[1742711651389,6.50837727,2003.8,2003.4,31.37744]
[1742711651892,1.51783727,2003.7,2003.4,31.37744]
[1742711652098,6.50837727,2003.8,2003.4,31.37744]
[1742711653184,1.51783727,2003.8,2003.5,4.9912]
[1742711655266,7.26759727,2003.9,2003.5,4.9911]
[1742711657583,2.27733727,2003.9,2003.6,4.99098]
[1742711658396,8.75997,2004.1,2003.6,4.99082]
[1742711658692,6.50789727,2004.0,2003.6,4.99082]
[1742711661290,1.51783727,2004.0,2003.5,27.1665]
[1742711661590,1.51783727,2004.0,2003.7,9.98119]
[1742711661759,1.51783727,2004.0,2003.7,4.99055]
[1742711662391,1.51783727,2004.0,2003.6,4.99099]
[1742711662392,6.50787727,2004.0,2003.6,4.99099]
[1742711662598,1.51783727,2003.9,2003.6,5.36453211]
[1742711663801,1.51783727,2003.9,2003.6,4.99099]
[1742711665204,7.27843727,2003.9,2003.5,32.15766]
[1742711665496,1.51783727,2003.7,2003.5,26.387]
[1742711665665,0.7702,2003.6,2003.5,26.387]
[1742711668597,7.27904727,2003.6,2003.5,26.387]
[1742711670269,7.27904727,2003.6,2003.5,31.37826]
[1742711670270,2.28803727,2003.6,2003.5,31.37826]
[1742711670601,0.7702,2003.6,2003.5,26.387]
[1742711671308,6.50869727,2003.7,2003.5,26.387]
[1742711672322,6.50869727,2003.7,2003.3,31.37955]
[1742711672675,6.50869727,2003.7,2003.3,26.388]
[1742711672875,6.50897727,2003.6,2003.3,26.388]
[1742711674007,6.50897727,2003.6,2003.3,31.37974]
[1742711674197,1.51783727,2003.6,2003.3,31.37974]
[1742711675141,6.50887727,2003.6,2003.3,31.37974]
[1742711675345,1.51783727,2003.4,2003.3,4.99174]
[1742711675640,4.51783727,2003.4,2003.0,5.74786]
[1742711675834,2.27603727,2003.5,2003.1,9.98421]
[1742711676308,1.51783727,2003.5,2003.2,4.99198]
[1742711677410,6.50912727,2003.5,2003.1,4.99208]
[1742711678422,6.50912727,2003.5,2003.1,31.38108]
[1742711679031,6.50912727,2003.5,2003.1,36.37318]
[1742711679241,6.50912727,2003.5,2003.1,31.38108]
[1742711679944,4.99129,2003.5,2003.1,31.38108]
[1742711681161,0.7582,2003.7,2003.3,4.99176]
[1742711681362,5.74899,2003.7,2003.3,4.99176]
[1742711681521,4.99079,2003.7,2003.3,5.04147201]
[1742711682414,4.99079,2003.7,2003.4,4.99151]
[1742711683861,1.51783727,2003.8,2003.5,4.99125]
[1742711684149,5.74857,2003.9,2003.5,4.99114]
[1742711684746,7.26640727,2003.9,2003.5,4.99114]
[1742711685048,12.25686727,2003.9,2003.5,4.99114]
[1742711685212,7.26640727,2003.9,2003.5,4.99114]
[1742711685411,7.26640727,2003.9,2003.5,5.3646592]
[1742711685652,4.99037,2003.9,2003.5,5.41456747]
[1742711686019,6.50820727,2003.9,2003.5,5.3646592]
[1742711686756,6.50820727,2003.9,2003.5,0.42342761]
[1742711686757,1.51783727,2003.9,2003.5,0.42342761]
[1742711686967,1.51783727,2003.9,2003.6,4.99089]
[1742711687167,11.49806727,2004.0,2003.6,4.99089]
[1742711688469,4.99033,2003.9,2003.5,4.99116]
[1742711689663,4.99033,2003.9,2003.5,5.04106822]
[1742711689956,4.99033,2003.9,2003.5,4.99116]
[1742711690152,6.50816727,2003.9,2003.5,4.99116]
[1742711690464,7.27756727,2003.9,2003.5,4.99116]
[1742711690763,7.27756727,2003.9,2003.5,5.36489598]
[1742711690927,1.51783727,2003.8,2003.5,5.36489598]
[1742711692836,1.51783727,2003.8,2003.5,31.75289598]
[1742711693157,2.28723727,2003.9,2003.6,4.99095]
[1742711694633,7.27752727,2003.9,2003.6,4.99095]
[1742711694828,1.51783727,2003.8,2003.5,31.37922]
[1742711696970,7.27752727,2003.9,2003.5,31.37922]
[1742711697366,1.51783727,2003.8,2003.5,31.37922]
[1742711698853,0.821,2003.7,2003.5,26.388]
[1742711699069,7.32962727,2003.7,2003.5,26.388]
[1742711701379,7.27894727,2003.6,2003.5,26.388]
[1742711701877,2.28793727,2003.6,2003.5,26.388]
[1742711702038,0.7701,2003.6,2003.5,26.388]
[1742711703470,2.28793727,2003.6,2003.5,26.388]
[1742711704574,0.7701,2003.6,2003.5,26.388]
[1742711705973,3.0,2003.7,2003.5,26.388]
[1742711706155,10.27855727,2003.8,2003.5,26.388]
[1742711706576,0.7701,2003.8,2003.5,26.388]
[1742711706874,4.99027,2003.9,2003.5,31.37908]
[1742711707076,4.99027,2003.9,2003.6,4.99101]
[1742711707241,0.7701,2004.0,2003.7,4.99071]
[1742711707447,1.02236485,2004.1,2003.8,4.9905]
[1742711707642,7.27756727,2004.2,2003.8,4.9905]
[1742711708084,1.51783727,2004.1,2003.8,4.9905]
[1742711708447,7.27756727,2004.2,2003.8,4.9905]
[1742711708858,7.27756727,2004.2,2003.8,9.98082]
[1742711709079,7.27756727,2004.2,2003.8,4.99032]
[1742711709391,0.99247743,2004.3,2004.0,4.99]
[1742711710188,2.5103147,2004.3,2003.9,5.75273]
[1742711710785,7.4995947,2004.3,2003.9,5.75273]
[1742711714491,7.4995947,2004.3,2003.9,10.74283]
[1742711714696,0.99247743,2004.3,2004.0,4.9898]
[1742711715384,0.99247743,2004.3,2004.1,4.98973]
[1742711715593,0.99247743,2004.3,2004.0,4.9898]
[1742711718294,2.5103147,2004.3,2004.0,4.9898]
[1742711718597,1.51783727,2004.2,2003.9,5.75275]
[1742711718768,1.51783727,2004.2,2003.9,10.74282]
[1742711719402,7.4996847,2004.3,2003.9,10.74282]
[1742711719608,7.4996847,2004.3,2004.0,4.98999]
[1742711721103,0.8137,2004.1,2004.0,4.98999]
[1742711721306,0.8137,2004.1,2003.9,4.99019]
[1742711722813,0.8137,2004.1,2004.0,26.383]
[1742711727508,0.8137,2004.1,2003.9,4.99025]
[1742711727715,0.8137,2004.1,2003.9,31.37225]
[1742711730479,2.33153727,2004.1,2003.9,26.382]
[1742711730684,1.51783727,2004.0,2003.9,26.382]
[1742711731818,8.80558454,2004.0,2003.9,26.382]
[1742711732193,11.80558454,2004.0,2003.9,26.382]
[1742711732393,13.98408499,2004.0,2003.9,26.382]
[1742711736024,12.46624772,2004.0,2003.9,26.382]
[1742711736531,13.98408499,2004.0,2003.9,26.382]
[1742711737227,4.99054,2003.8,2003.4,31.37646]
[1742711737428,1.51783727,2003.7,2003.4,31.37646]
[1742711746435,5.77044,2003.8,2003.4,31.37646]
[1742711746436,7.28827727,2003.8,2003.4,31.37646]
[1742711750349,1.51783727,2003.7,2003.4,31.37646]
[1742711750553,7.28827727,2003.8,2003.4,31.37646]
[1742711750943,1.51783727,2003.7,2003.4,31.37646]
[1742711751951,7.28827727,2003.8,2003.4,31.37646]
[1742711753526,7.28827727,2003.8,2003.5,4.99125]
[1742711753729,0.7799,2003.8,2003.5,4.99112]
[1742711753926,0.7799,2003.8,2003.5,4.99106]
[1742711754658,0.7799,2003.8,2003.5,9.98219]
[1742711754852,0.7799,2003.8,2003.5,4.99106]
[1742711755047,0.7799,2003.8,2003.5,5.36470247]
[1742711757752,7.28829727,2003.8,2003.4,31.3765]
[1742711759050,12.27903727,2003.8,2003.4,31.3765]
[1742711759252,7.28829727,2003.8,2003.4,31.3765]
[1742711762662,12.27901727,2003.8,2003.4,31.3765]
[1742711762968,7.29979727,2003.5,2003.4,26.385]
[1742711764354,5.78196,2003.5,2003.4,26.385]
[1742711764561,7.29979727,2003.5,2003.4,26.385]
[1742711764887,5.78196,2003.5,2003.4,26.385]
[1742711765645,7.29979727,2003.5,2003.4,26.385]
[1742711766362,5.78196,2003.5,2003.4,26.385]
[1742711766887,7.29979727,2003.5,2003.4,26.385]
[1742711767383,5.78196,2003.5,2003.4,26.385]
[1742711767679,7.29979727,2003.5,2003.4,26.385]
[1742711770987,7.29979727,2003.5,2003.1,31.38209]
[1742711774991,12.29129727,2003.5,2003.1,31.38209]
[1742711776071,7.29979727,2003.5,2003.1,31.38209]
[1742711778462,7.29979727,2003.5,2003.1,36.37418]
[1742711779163,7.29979727,2003.5,2003.1,31.38209]
[1742711782506,6.50949727,2003.4,2003.1,26.39]
[1742711782672,0.7721,2003.3,2003.1,26.39]
[1742711783097,5.76388,2003.3,2003.1,26.39]
[1742711783683,0.7721,2003.3,2003.1,26.39]
[1742711784401,5.76386,2003.3,2003.1,26.39]
[1742711785792,0.7721,2003.3,2003.1,26.39]
[1742711787819,2.28993727,2003.3,2003.1,26.39]
[1742711788121,7.28172727,2003.3,2003.1,26.39]
[1742711789446,5.76389,2003.3,2003.1,26.39]
[1742711790024,0.7721,2003.3,2003.1,26.39]
[1742711790222,0.7721,2003.3,2003.0,4.99248]
[1742711792600,0.7721,2003.3,2003.0,4.99238]
[1742711793046,4.99154,2003.4,2003.0,4.99238]
[1742711793649,4.99154,2003.4,2003.1,5.36686145]
[1742711794791,4.99154,2003.4,2003.1,4.99225]
[1742711795797,3.0,2003.6,2003.3,4.99151]
[1742711796424,4.51783727,2003.6,2003.2,5.77585]
[1742711798497,3.8295,2003.9,2003.3,0.7839]
[1742711798702,2.34733727,2003.9,2003.5,4.99125]
[1742711799133,2.34733727,2003.9,2003.6,4.991]
[1742711799627,1.51783727,2003.8,2003.6,4.991]
[1742711802838,1.51783727,2003.8,2003.4,9.98284]
[1742711803440,1.51783727,2003.8,2003.5,4.99126]
[1742711815185,6.50835727,2003.8,2003.4,31.38244]
[1742711815485,6.50835727,2003.8,2003.4,36.37377]
[1742711815772,0.8047,2003.6,2003.4,31.38233]
[1742711822076,0.8047,2003.6,2003.4,26.391]
[1742711822582,1.51783727,2003.5,2003.4,26.391]
[1742711823465,7.31370727,2003.6,2003.4,26.391]
[1742711824513,2.32253727,2003.6,2003.4,26.391]
[1742711824784,0.8047,2003.6,2003.4,26.391]
[1742711824977,6.50859727,2003.7,2003.4,31.38248]
[1742711824978,1.51783727,2003.7,2003.4,31.38248]
[1742711825680,5.32133727,2003.8,2003.5,4.9911]
[1742711825886,0.8035,2003.8,2003.5,4.9911]
[1742711826379,9.50821727,2003.9,2003.5,4.9911]
[1742711826583,6.50821727,2003.9,2003.5,4.9911]
[1742711828282,1.51783727,2003.9,2003.5,4.9911]
[1742711828482,1.51783727,2003.9,2003.6,4.99085]
[1742711828688,6.50813727,2003.9,2003.5,4.9911]
[1742711829266,1.51783727,2003.8,2003.5,9.98226]
[1742711829675,6.50813727,2003.9,2003.5,9.98226]
[1742711830256,1.51783727,2003.9,2003.6,4.99097]
[1742711831359,1.51783727,2003.9,2003.5,4.9911]
[1742711831887,1.51783727,2003.8,2003.5,4.9911]
[1742711832290,6.50813727,2003.9,2003.5,4.99107]
[1742711832485,6.50813727,2003.9,2003.5,5.74407]
[1742711832992,6.50813727,2003.9,2003.6,4.99099]
[1742711835261,1.51783727,2003.9,2003.6,4.99099]
[1742711838474,6.50812727,2003.9,2003.5,5.74421]
[1742711839516,6.50812727,2003.9,2003.5,10.73528]
[1742711840595,6.50812727,2003.9,2003.5,5.74407]
[1742711841164,1.51783727,2003.9,2003.6,4.99098]
[1742711847325,1.51783727,2003.9,2003.6,4.99083]
[1742711847687,11.32951382,2004.0,2003.6,4.99083]
[1742711848425,1.51783727,2003.9,2003.6,4.99083]
[1742711854735,11.32951382,2004.0,2003.6,4.99083]
[1742711857232,1.51783727,2003.9,2003.6,4.99083]
[1742711857929,6.50821727,2003.9,2003.5,32.13225]
[1742711858437,7.32285727,2003.8,2003.5,31.37925]
[1742711858814,7.32285727,2003.8,2003.5,26.388]
[1742711860136,2.33233727,2003.8,2003.5,26.388]
[1742711860526,0.8145,2003.8,2003.5,31.37925]
[1742711862441,2.33233727,2003.8,2003.5,31.37925]
[1742711864750,2.33233727,2003.8,2003.5,4.99125]
[1742711880262,2.33233727,2003.8,2003.6,4.99101]
[1742711880448,0.8145,2003.8,2003.6,4.99101]
[1742711882175,6.50821727,2003.9,2003.6,4.99101]
[1742711891085,1.51783727,2003.9,2003.6,4.99101]
[1742711891601,1.51783727,2003.9,2003.7,4.99071]
[1742711891758,1.01810655,2004.0,2003.7,4.99076]
[1742711891959,0.7789,2004.2,2004.0,4.98982]
[1742711892261,1.51783727,2004.3,2003.9,0.7561]
[1742711892456,2.29673727,2004.4,2004.1,4.98968]
[1742711892878,7.28579727,2004.4,2004.0,4.9898]
[1742711893068,1.51783727,2004.3,2004.0,4.9898]
[1742711893256,1.51783727,2004.2,2004.0,4.9898]
[1742711893457,1.51783727,2004.2,2003.9,5.74633]
[1742711893680,1.51783727,2004.2,2003.9,10.73644]
[1742711893879,2.51580813,2004.2,2003.9,10.73644]
[1742711894388,0.99797086,2004.2,2004.0,9.97989]
[1742711894766,2.51580813,2004.2,2004.0,9.97989]
[1742711895357,2.51580813,2004.2,2004.0,4.98992]
[1742711897288,0.99797086,2004.2,2004.0,4.98992]
[1742711898187,0.99797086,2004.2,2004.0,4.98988]
[1742711898793,1.51783727,2004.3,2004.0,4.98988]
[1742711900697,1.00416235,2004.2,2004.0,4.98988]
[1742711903699,1.00416235,2004.2,2004.0,9.97974]
[1742711903894,1.00416235,2004.2,2004.0,4.98986]
[1742711904393,1.00416235,2004.2,2004.0,9.97978]
[1742711904576,1.00416235,2004.2,2004.1,4.98977]
[1742711905393,1.51783727,2004.3,2004.1,4.98977]
[1742711905598,1.51783727,2004.4,2004.1,4.98977]
[1742711907106,1.00838907,2004.2,2004.1,4.98965]
[1742711907406,0.7633,2004.6,2004.1,1.51783727]
[1742711907595,1.51783727,2004.6,2004.3,4.98927]
[1742711910262,1.51783727,2004.6,2004.3,9.97837]
[1742711910895,1.51783727,2004.6,2004.3,4.9891]
[1742711912773,1.51783727,2004.6,2004.4,4.98894]
[1742711921612,1.51783727,2004.6,2004.2,37.13162]
[1742711921785,1.51783727,2004.5,2004.3,4.98924]
[1742711923017,1.51783727,2004.5,2004.2,37.13146]
[1742711923316,1.51783727,2004.5,2004.3,4.98922]
[1742711932924,1.51783727,2004.4,2004.2,32.14195]
[1742711933129,1.51783727,2004.4,2004.2,31.36935]
[1742711933314,1.51783727,2004.3,2004.2,26.38]
[1742711933523,1.51783727,2004.4,2004.2,26.38]
[1742711934431,1.51783727,2004.3,2004.2,26.38]
[1742711935200,1.51783727,2004.4,2004.2,26.38]
[1742711938532,1.51783727,2004.4,2004.1,36.35735]
[1742711939936,1.51783727,2004.4,2004.2,4.98951]
[1742711941238,1.51783727,2004.3,2004.1,31.36759]
[1742711942438,1.51783727,2004.3,2004.1,36.35717]
[1742711942739,1.51783727,2004.4,2004.1,31.36758]
[1742711945949,1.51783727,2004.4,2004.2,4.98951]
[1742711953648,1.51783727,2004.4,2004.3,4.98927]
[1742711959679,1.51783727,2004.4,2004.2,4.98951]
[1742711962174,4.81508139,2004.7,2004.2,1.35721797]
[1742711962336,4.98796,2004.9,2004.4,4.98888]
[1742711962337,1.51783727,2004.6,2004.4,4.98888]
[1742711962536,7.98803,2004.8,2004.4,4.98892]
[1742711962753,1.51783727,2004.6,2004.4,9.97777]
[1742711963154,1.51783727,2004.6,2004.4,9.97776]
[1742711964568,1.51783727,2004.6,2004.5,4.98877]
[1742711964772,1.51783727,2004.6,2004.4,4.98885]
[1742711965563,1.51783727,2004.5,2004.4,4.98885]
[1742711970870,1.51783727,2004.6,2004.5,4.98877]
[1742711971173,1.51783727,2004.7,2004.5,4.98869]
[1742711976980,5.78364,2004.9,2004.5,4.98869]
[1742711977180,1.51783727,2004.7,2004.5,4.98869]
[1742711977375,0.7958,2004.9,2004.5,4.98861]
[1742711977577,1.51783727,2004.8,2004.5,4.98861]
[1742711979693,1.51783727,2004.7,2004.5,4.98861]
[1742711983485,1.51783727,2004.7,2004.5,9.97724]
[1742711984383,5.97720867,2005.0,2004.6,5.80598]
[1742711984585,1.51783727,2004.9,2004.7,4.98809]
[1742711985360,1.51783727,2005.0,2004.7,4.98809]
[1742711985559,1.51783727,2004.9,2004.7,4.98809]
[1742711985975,1.51783727,2005.0,2004.8,4.98802]
[1742711986380,1.51783727,2004.9,2004.8,4.98802]
[1742711986990,1.51783727,2004.9,2004.7,4.98809]
[1742711987207,1.51783727,2004.9,2004.7,9.97626]
[1742711989998,1.51783727,2004.9,2004.8,4.98802]
[1742711990493,1.51783727,2005.0,2004.8,4.98802]
[1742711991165,1.51783727,2004.9,2004.8,4.98802]
[1742711992480,1.51783727,2005.0,2004.8,4.98802]
[1742711992686,1.51783727,2004.9,2004.8,4.98802]
[1742711994299,1.51783727,2005.0,2004.8,4.98802]
[1742711994803,1.51783727,2005.0,2004.7,4.98824]
[1742711995798,7.9873,2005.1,2004.7,4.98824]
[1742711996004,1.51783727,2005.0,2004.7,9.97631]
[1742711996182,1.51783727,2005.0,2004.8,4.98802]
[1742711996997,1.51783727,2005.0,2004.8,9.97587]
[1742711997201,1.51783727,2005.0,2004.8,4.98785]
[1742711997797,1.51783727,2005.1,2004.9,4.98777]
[1742711998004,1.63708187,2005.2,2005.0,4.98753]
[1742711999578,1.63708187,2005.2,2005.1,4.98728]
[1742711999579,0.1192446,2005.2,2005.1,4.98728]
[1742711999784,1.63708187,2005.2,2005.1,4.98728]
[1742712000175,1.63708187,2005.2,2005.0,4.98746]
[1742712000575,1.51783727,2005.1,2005.0,4.98746]
[1742712002875,1.51783727,2005.1,2004.9,4.98771]
[1742712003076,1.51783727,2005.1,2004.9,5.36565065]
[1742712003277,1.51783727,2005.1,2005.0,4.98753]
[1742712003607,1.51783727,2005.1,2004.9,5.36565065]
[1742712003776,1.51783727,2005.1,2004.9,10.35328065]
[1742712004102,1.51783727,2005.0,2004.8,5.79226]
[1742712004320,1.51783727,2005.0,2004.8,4.98796]
[1742712004809,1.51783727,2005.0,2004.8,31.35896]
[1742712005183,2.31383727,2004.9,2004.8,26.371]
[1742712005382,1.51783727,2004.9,2004.8,26.371]
[1742712005786,1.51783727,2005.0,2004.8,26.371]
[1742712005984,1.51783727,2004.9,2004.8,26.371]
[1742712008121,7.30160727,2004.9,2004.8,26.371]
[1742712009414,2.31383727,2004.9,2004.8,26.371]
[1742712014316,2.31383727,2004.9,2004.6,4.98834]
[1742712014521,2.31383727,2004.9,2004.6,31.35934]
[1742712014723,2.31383727,2004.9,2004.7,4.98824]
[1742712014920,1.51783727,2004.9,2004.7,4.98824]
[1742712020932,1.51783727,2004.9,2004.8,4.98802]
[1742712022131,1.51783727,2004.9,2004.7,4.98824]
[1742712025531,1.51783727,2004.8,2004.6,32.11068]
[1742712025711,2.33163727,2004.8,2004.6,31.35948]
[1742712026629,1.51783727,2004.8,2004.6,36.34781]
[1742712026813,1.51783727,2004.8,2004.6,31.35933]
[1742712027015,1.51783727,2004.9,2004.7,4.98827]
[1742712027604,2.33163727,2005.0,2004.7,9.97635]
[1742712029212,2.33163727,2005.0,2004.8,4.98798]
[1742712029524,1.51783727,2004.9,2004.8,4.98798]
[1742712031111,1.51783727,2004.9,2004.7,4.98823]
[1742712049555,0.7524,2004.8,2004.7,4.98823]
[1742712049787,2.27023727,2004.8,2004.6,31.35951]
[1742712050059,1.51783727,2004.7,2004.6,26.371]
[1742712052563,1.51783727,2004.7,2004.6,31.35952]
[1742712053361,1.51783727,2004.7,2004.6,4.98852]
[1742712053662,1.51783727,2004.8,2004.6,4.98852]
[1742712054434,1.51783727,2004.9,2004.7,4.98816]
[1742712054834,2.27023727,2005.0,2004.8,4.98802]
[1742712055164,1.51783727,2005.0,2004.8,4.98802]
[1742712055359,3.0,2005.1,2004.9,4.98767]
[1742712055562,1.51783727,2005.0,2004.9,4.98767]
[1742712056569,1.51783727,2005.0,2004.8,4.98802]
[1742712056747,1.51783727,2004.9,2004.8,4.98802]
[1742712058969,1.51783727,2004.9,2004.7,26.372]
[1742712059468,1.51783727,2004.8,2004.7,26.372]
[1742712059668,1.51783727,2004.9,2004.7,26.372]
[1742712060673,1.51783727,2004.8,2004.7,26.372]
[1742712061773,2.33763727,2004.8,2004.7,26.372]
[1742712062952,2.33763727,2004.8,2004.6,4.98835]
[1742712065174,1.51783727,2004.7,2004.5,31.36073]
[1742712067957,1.51783727,2004.7,2004.5,36.34932]
[1742712068980,1.51783727,2004.7,2004.5,31.36059]
[1742712069554,1.51783727,2004.6,2004.5,26.372]
[1742712079081,2.29933727,2004.6,2004.5,26.372]
[1742712087001,2.29933727,2004.6,2004.3,4.98923]
[1742712087317,1.51783727,2004.5,2004.3,4.98923]
[1742712092404,2.29933727,2004.6,2004.3,4.98923]
[1742712092976,3.0,2004.7,2004.5,4.98877]
[1742712093171,4.51783727,2004.7,2004.5,4.98877]
[1742712093902,1.51783727,2004.6,2004.4,4.989]
[1742712094907,1.51783727,2004.5,2004.3,5.754]
[1742712095075,1.51783727,2004.5,2004.3,10.7431]
[1742712096503,1.51783727,2004.5,2004.4,4.98902]
[1742712097988,1.51783727,2004.5,2004.3,4.9891]
[1742712098809,1.51783727,2004.5,2004.3,9.97821]
[1742712099016,1.51783727,2004.5,2004.4,4.98902]
[1742712101575,1.51783727,2004.5,2004.3,4.9891]
[1742712101778,1.51783727,2004.5,2004.3,9.97826]
[1742712104006,1.51783727,2004.5,2004.4,4.98902]
[1742712104212,1.51783727,2004.6,2004.4,4.98902]
[1742712107425,1.51783727,2004.6,2004.3,4.9891]
[1742712107722,1.51783727,2004.6,2004.3,9.97825]
[1742712109194,1.51783727,2004.6,2004.3,4.9891]
[1742712110033,1.51783727,2004.6,2004.3,9.97818]
[1742712114434,1.51783727,2004.6,2004.4,0.3736042]
[1742712115734,1.51783727,2004.6,2004.4,5.3626242]
[1742712115929,1.51783727,2004.6,2004.4,4.98902]
[1742712118134,1.51783727,2004.6,2004.2,31.36429]
[1742712118508,1.51783727,2004.6,2004.3,4.98917]
[1742712119111,2.34813727,2004.6,2004.3,5.36294353]
[1742712120341,2.34813727,2004.6,2004.4,0.37377353]
[1742712121445,2.34813727,2004.6,2004.4,5.36277353]
[1742712121842,2.34813727,2004.6,2004.4,4.989]
[1742712125942,0.8303,2004.6,2004.4,4.989]
[1742712128143,4.51783727,2004.7,2004.4,4.989]
[1742712128444,1.51783727,2004.7,2004.4,4.989]
[1742712130742,1.51783727,2004.7,2004.3,0.758]
[1742712130911,13.44817727,2005.0,2004.6,4.98842]
[1742712131113,1.51783727,2004.9,2004.6,4.98835]
[1742712131315,1.51783727,2004.9,2004.7,4.98827]
[1742712131840,1.51783727,2005.0,2004.8,4.98802]
[1742712133619,1.51783727,2004.9,2004.7,5.74616]
[1742712136946,1.51783727,2004.9,2004.7,6.32317797]
[1742712137127,1.51783727,2004.9,2004.8,4.98802]
[1742712137640,1.51783727,2004.9,2004.7,5.74625]
[1742712137818,1.51783727,2004.8,2004.7,4.98825]
[1742712140550,1.51783727,2004.9,2004.7,4.98825]
[1742712140843,1.51783727,2004.8,2004.6,31.36252]
[1742712144326,1.51783727,2004.8,2004.6,26.374]
[1742712145153,1.51783727,2004.8,2004.6,31.36251]
[1742712147245,1.51783727,2004.7,2004.6,26.374]
[1742712147545,2.26813727,2004.8,2004.6,26.374]
[1742712150170,0.7503,2004.8,2004.6,26.374]
[1742712150338,0.7503,2004.8,2004.6,31.36245]
[1742712151029,2.26813727,2004.8,2004.6,31.36245]
[1742712151534,0.7503,2004.8,2004.6,31.36245]
[1742712152469,2.26813727,2004.8,2004.6,31.36245]
[1742712154274,2.26813727,2004.8,2004.6,26.374]
[1742712158183,2.26813727,2004.8,2004.5,31.36172]
[1742712163015,2.26813727,2004.8,2004.5,4.98872]
[1742712163616,2.26813727,2004.8,2004.5,9.97732]
[1742712163920,6.50562727,2004.9,2004.6,4.98852]
[1742712164312,1.51783727,2004.9,2004.6,4.98852]
[1742712180335,1.51783727,2004.9,2004.5,32.1684]
[1742712180633,1.51783727,2004.8,2004.5,32.1684]
[1742712180833,1.51783727,2004.8,2004.5,37.15704]
[1742712185033,2.750293,2004.9,2004.5,37.15704]
[1742712185338,2.750293,2004.9,2004.6,4.98851]
[1742712186047,1.51783727,2004.8,2004.6,4.98851]
[1742712187242,2.750293,2004.9,2004.6,4.98851]
[1742712187447,1.51783727,2004.8,2004.6,4.98851]
[1742712189445,2.750293,2004.9,2004.6,4.98851]
[1742712190367,1.3556943,2004.8,2004.6,4.98851]
[1742712190543,6.50562727,2004.9,2004.5,32.16854]
[1742712190878,6.50562727,2004.9,2004.5,37.15712]